fUST/lending_fUST_20250420
["ID","MTS","AMOUNT","RATE_DAILY","PERIOD"]
[358433041,1745143849595,-500.0,0.0002,2]
[358433042,1745143849605,-500.0,0.0002,2]
[358433043,1745143849614,-391.12,0.0002,2]
[358433044,1745143849623,-500.0,0.0002,2]
[358433045,1745143849633,-500.0,0.0002,2]
[358433046,1745143849642,-500.0,0.0002,2]
[358433047,1745143849651,-500.0,0.0002,2]
[358433048,1745143849660,-500.0,0.0002,2]
[358433049,1745143849670,-370.33,0.0002,2]
[358433050,1745143849679,-180.19,0.0002,2]
[358433051,1745143849688,-500.0,0.0002,2]
[358433052,1745143849698,-500.0,0.0002,2]
[358433053,1745143849707,-252.98,0.0002,2]
[358433054,1745143849717,-500.0,0.0002,2]
[358433055,1745143849726,-500.0,0.0002,2]
[358433056,1745143849735,-500.0,0.0002,2]
[358433057,1745143849745,-1019.63,0.0002,2]
[358433058,1745143849755,-500.0,0.0002,2]
[358433059,1745143849764,-165.14,0.0002,2]
[358433060,1745143849774,-500.0,0.0002,2]
[358433061,1745143849783,-500.0,0.0002,2]
[358433062,1745143849793,-612.31,0.0002,2]
[358433063,1745143849803,-500.0,0.0002,2]
[358433064,1745143849812,-500.0,0.0002,2]
[358433065,1745143849821,-469.89,0.0002,2]
[358433066,1745143849831,-500.0,0.0002,2]
[358433067,1745143849840,-500.0,0.0002,2]
[358433068,1745143849849,-1852.65,0.0002,2]
[358433069,1745143849859,-500.0,0.0002,2]
[358433070,1745143849868,-500.0,0.0002,2]
[358433071,1745143849878,-500.0,0.0002,2]
[358433072,1745143849887,-500.0,0.0002,2]
[358433073,1745143849896,-500.0,0.0002,2]
[358433074,1745143849905,-500.0,0.0002,2]
[358433075,1745143849915,-859.8,0.0002,2]
[358433076,1745143849925,-244.50677849,0.0002,2]
[358433077,1745143849934,-500.0,0.0002,2]
[358433078,1745143849943,-500.0,0.0002,2]
[358433079,1745143849952,-2000.0,0.0002,4]
[358433080,1745143849962,-2612.31,0.0002,2]
[358433081,1745143849971,-196.37,0.0002,2]
[358433082,1745143849981,-500.0,0.0002,2]
[358433083,1745143849991,-334.54,0.0002,2]
[358433084,1745143850001,-707.0,0.00020123,2]
[358433085,1745143850010,-544.0,0.00020123,2]
[358433086,1745143850020,-2248.0,0.00020123,2]
[358433087,1745143850030,-500.0,0.00020136,2]
[358433088,1745143850040,-500.0,0.00020136,2]
[358433089,1745143850050,-500.0,0.00020136,2]
[358433090,1745143850059,-613.09389048,0.00020136,2]
[358433091,1745143850069,-500.0,0.00020136,2]
[358433092,1745143850079,-500.0,0.00020136,2]
[358433093,1745143850088,-500.0,0.00020136,2]
[358433094,1745143850098,-500.0,0.00020136,2]
[358433095,1745143850108,-500.0,0.00020136,2]
[358433096,1745143850117,-500.0,0.00020136,2]
[358433097,1745143850126,-500.0,0.00020136,2]
[358433098,1745143850136,-500.0,0.00020136,2]
[358433099,1745143850146,-500.0,0.00020139,2]
[358433100,1745143850156,-500.0,0.00020139,2]
[358433101,1745143850166,-500.0,0.00020139,2]
[358433102,1745143850175,-500.0,0.00020139,2]
[358433103,1745143850186,-500.0,0.00020139,2]
[358433104,1745143850196,-314.04979359,0.00020139,2]
[358433105,1745143850207,-500.0,0.00020139,2]
[358433106,1745143850217,-500.0,0.00020139,2]
[358433107,1745143850227,-500.0,0.00020139,2]
[358433108,1745143850237,-500.0,0.00020139,2]
[358433109,1745143850247,-500.0,0.00020139,2]
[358433110,1745143850266,-500.0,0.00020139,2]
[358433111,1745143850276,-500.0,0.00020139,2]
[358433112,1745143850286,-500.0,0.00020139,2]
[358433113,1745143850296,-500.0,0.00020139,2]
[358433114,1745143850306,-563.96071373,0.00020231,2]
[358433115,1745143850315,-500.0,0.00020231,2]
[358433116,1745143850325,-538.48416411,0.00020231,2]
[358433117,1745143850335,-500.0,0.00020243,2]
[358433118,1745143850346,-500.0,0.00020243,2]
[358433119,1745143850355,-186.97,0.00020273,2]
[358433120,1745143850365,-500.0,0.00020273,2]
[358433121,1745143850374,-500.0,0.00020273,2]
[358433122,1745143850384,-550.98,0.00020273,2]
[358433123,1745143850393,-505.58,0.00020273,2]
[358433124,1745143850403,-507.48,0.00020273,2]
[358433125,1745143850413,-500.0,0.00020273,2]
[358433126,1745143850423,-177.15,0.00020273,2]
[358433127,1745143850433,-425.88,0.00020273,2]
[358433128,1745143850442,-500.0,0.00020273,2]
[358433129,1745143850451,-500.0,0.00020273,2]
[358433130,1745143850461,-500.0,0.00020273,2]
[358433131,1745143850471,-541.04,0.00020273,2]
[358433132,1745143850480,-500.0,0.00020273,2]
[358433133,1745143850489,-528.53,0.00020273,2]
[358433134,1745143850499,-492.55,0.00020273,2]
[358433135,1745143850509,-226.66,0.00020273,2]
[358433136,1745143850518,-500.0,0.00020273,2]
[358433137,1745143850528,-622.9,0.00020273,2]
[358433138,1745143850538,-768.68,0.00020273,2]
[358433139,1745143850551,-490.78,0.00020273,2]
[358433140,1745143850561,-500.0,0.00020273,2]
[358433141,1745143850571,-500.0,0.00020273,2]
[358433142,1745143850582,-500.0,0.00020273,2]
[358433143,1745143850592,-500.0,0.00020273,2]
[358433144,1745143850602,-500.0,0.00020273,2]
[358433145,1745143850612,-500.0,0.00020273,2]
[358433146,1745143850623,-382.44,0.00020273,2]
[358433147,1745143850633,-500.0,0.00020273,2]
[358433148,1745143850643,-500.0,0.00020273,2]
[358433149,1745143850652,-500.0,0.00020273,2]
[358433150,1745143850662,-500.0,0.00020273,2]
[358433151,1745143850671,-500.0,0.00020273,2]
[358433152,1745143850681,-267.70697515,0.00020273,2]
[358433153,1745143850691,-3450.87,0.00020273,2]
[358433154,1745143850841,-500.0,0.00020273,2]
[358433155,1745143850864,-172.77640888,0.00020273,2]
[358433156,1745143850874,-602.2,0.00020273,2]
[358433157,1745143850883,-253.45,0.00020273,2]
[358433158,1745143850893,-500.0,0.00020273,2]
[358433159,1745143850903,-190.73,0.00020273,2]
[358433160,1745143850912,-624.1,0.00020273,2]
[358433161,1745143850922,-451.21,0.00020273,2]
[358433162,1745143850931,-500.0,0.00020273,2]
[358433163,1745143850942,-500.0,0.00020273,2]
[358433164,1745143850951,-447.34,0.00020273,2]
[358433165,1745143850961,-500.0,0.00020273,2]
[358433166,1745143850971,-500.0,0.00020273,2]
[358433167,1745143850980,-325.82,0.00020273,2]
[358433168,1745143850990,-500.0,0.00020273,2]
[358433169,1745143850999,-500.0,0.00020273,2]
[358433170,1745143851009,-500.0,0.00020273,2]
[358433171,1745143851018,-500.0,0.00020273,2]
[358433172,1745143851028,-500.0,0.00020273,2]
[358433173,1745143851037,-1019.63,0.00020273,2]
[358433174,1745143851047,-446.83,0.00020273,2]
[358433175,1745143851056,-500.0,0.00020273,2]
[358433176,1745143851066,-455.66,0.00020273,2]
[358433177,1745143851075,-612.31,0.00020273,2]
[358433178,1745143851085,-500.0,0.00020273,2]
[358433179,1745143851094,-270.86,0.00020273,2]
[358433180,1745143851104,-192.31,0.00020273,2]
[358433181,1745143851113,-500.0,0.00020273,2]
[358433182,1745143851123,-1852.65,0.00020273,2]
[358433183,1745143851132,-500.0,0.00020273,2]
[358433184,1745143851142,-500.0,0.00020273,2]
[358433185,1745143851152,-500.0,0.00020273,2]
[358433186,1745143851161,-500.0,0.00020273,2]
[358433187,1745143851170,-500.0,0.00020273,2]
[358433188,1745143851180,-500.0,0.00020273,2]
[358433189,1745143851190,-859.8,0.00020273,2]
[358433190,1745143851199,-500.0,0.00020273,2]
[358433191,1745143851209,-365.33,0.00020273,2]
[358433192,1745143851218,-2612.31,0.00020273,2]
[358433193,1745143851227,-500.0,0.00020273,2]
[358433194,1745143851236,-307.41,0.00020547,2]
[358433195,1745143851245,-417.32,0.00020547,2]
[358433196,1745143851255,-500.0,0.00020547,2]
[358433197,1745143851264,-500.0,0.00020547,2]
[358433198,1745143851274,-500.0,0.00020547,2]
[358433199,1745143851283,-500.0,0.00020547,2]
[358433200,1745143851293,-264.21,0.00020547,2]
[358433201,1745143851302,-228.29434969,0.00020547,2]
[358433202,1745143851311,-768.68,0.00020547,2]
[358433203,1745143851320,-587.09,0.00020547,2]
[358433204,1745143851330,-500.0,0.00020547,2]
[358433205,1745143851339,-500.0,0.00020547,2]
[358433206,1745143851349,-500.0,0.00020547,2]
[358433207,1745143851358,-500.0,0.00020547,2]
[358433208,1745143851367,-500.0,0.00020547,2]
[358433209,1745143851377,-500.0,0.00020547,2]
[358433210,1745143851386,-500.0,0.00020547,2]
[358433211,1745143851395,-538.88,0.00020547,2]
[358433212,1745143851404,-500.0,0.00020547,2]
[358433213,1745143851413,-500.0,0.00020547,2]
[358433214,1745143851422,-3450.87,0.00020547,2]
[358433215,1745143851432,-591.08,0.00020547,2]
[358433216,1745143851441,-510.24,0.00020547,2]
[358433217,1745143851451,-624.1,0.00020547,2]
[358433218,1745143851460,-500.0,0.00020547,2]
[358433219,1745143851469,-404.76,0.00020547,2]
[358433220,1745143851478,-249.24,0.00020547,2]
[358433221,1745143851488,-267.58,0.00020547,2]
[358433222,1745143851498,-500.0,0.00020547,2]
[358433223,1745143851507,-500.0,0.00020547,2]
[358433224,1745143851516,-500.0,0.00020547,2]
[358433225,1745143851525,-500.0,0.00020547,2]
[358433226,1745143851534,-500.0,0.00020547,2]
[358433227,1745143851547,-1019.63,0.00020547,2]
[358433228,1745143851556,-500.0,0.00020547,2]
[358433229,1745143851565,-612.31,0.00020547,2]
[358433230,1745143851575,-171.48,0.00020547,2]
[358433231,1745143851584,-500.0,0.00020547,2]
[358433232,1745143851594,-1852.65,0.00020547,2]
[358433233,1745143851603,-500.0,0.00020547,2]
[358433234,1745143851612,-440.00571017,0.00020547,2]
[358433235,1745143851622,-500.0,0.00020547,2]
[358433236,1745143851631,-267.35,0.00020547,2]
[358433237,1745143851641,-500.0,0.00020547,2]
[358433238,1745143851650,-500.0,0.00020547,2]
[358433239,1745143851661,-859.8,0.00020547,2]
[358433240,1745143851672,-500.0,0.00020547,2]
[358433241,1745143851681,-2612.31,0.00020547,2]
[358433242,1745143851692,-500.0,0.00020547,2]
[358433243,1745143851701,-420.0,0.00020684,2]
[358433244,1745143851711,-420.0,0.00020784,2]
[358433245,1745143851721,-464.14,0.00020821,2]
[358433246,1745143851730,-500.0,0.00020821,2]
[358433247,1745143851739,-516.86,0.00020821,2]
[358433248,1745143851749,-500.0,0.00020821,2]
[358433249,1745143851758,-768.68,0.00020821,2]
[358433250,1745143851768,-500.0,0.00020821,2]
[358433251,1745143851777,-573.19,0.00020821,2]
[358433252,1745143851786,-424.59,0.00020821,2]
[358433253,1745143851796,-500.0,0.00020821,2]
[358433254,1745143851805,-500.0,0.00020821,2]
[358433255,1745143851814,-247.81,0.00020821,2]
[358433256,1745143851824,-500.0,0.00020821,2]
[358433257,1745143851833,-500.0,0.00020821,2]
[358433258,1745143851843,-236.62,0.00020821,2]
[358433259,1745143851852,-3450.87,0.00020821,2]
[358433260,1745143851861,-624.1,0.00020821,2]
[358433261,1745143851871,-500.0,0.00020821,2]
[358433262,1745143851881,-151.0,0.00020821,2]
[358433263,1745143851890,-500.0,0.00020821,2]
[358433264,1745143851899,-500.0,0.00020821,2]
[358433265,1745143851909,-500.0,0.00020821,2]
[358433266,1745143851918,-500.0,0.00020821,2]
[358433267,1745143851928,-500.0,0.00020821,2]
[358433268,1745143851937,-1019.63,0.00020821,2]
[358433269,1745143851947,-443.21,0.00020821,2]
[358433270,1745143851956,-612.31,0.00020821,2]
[358433271,1745143851965,-500.0,0.00020821,2]
[358433272,1745143851975,-1852.65,0.00020821,2]
[358433273,1745143851984,-480.51,0.00020821,2]
[358433274,1745143851994,-500.0,0.00020821,2]
[358433275,1745143852003,-500.0,0.00020821,2]
[358433276,1745143852013,-500.0,0.00020821,2]
[358433277,1745143852023,-859.8,0.00020821,2]
[358433278,1745143852032,-500.0,0.00020821,2]
[358433279,1745143852041,-2612.31,0.00020821,2]
[358433280,1745143852051,-461.50506442,0.00020821,2]
[358433281,1745143852060,-600.0,0.00020822,2]
[358433282,1745143852069,-157.87,0.00021,2]
[358433283,1745143852079,-500.0,0.00021095,2]
[358433284,1745143852088,-500.0,0.00021095,2]
[358433285,1745143852098,-768.68,0.00021095,2]
[358433286,1745143852107,-246.96,0.00021095,2]
[358433287,1745143852116,-503.44,0.00021095,2]
[358433288,1745143852125,-500.0,0.00021095,2]
[358433289,1745143852135,-177.0,0.00021095,2]
[358433290,1745143852144,-168.81,0.00021095,2]
[358433291,1745143852155,-3450.87,0.00021095,2]
[358433292,1745143852165,-624.1,0.00021095,2]
[358433293,1745143852175,-234.51,0.00021095,2]
[358433294,1745143852185,-573.12,0.00021095,2]
[358433295,1745143852194,-500.0,0.00021095,2]
[358433296,1745143852203,-500.0,0.00021095,2]
[358433297,1745143852212,-500.0,0.00021095,2]
[358433298,1745143852221,-500.0,0.00021095,2]
[358433299,1745143852230,-1019.63,0.00021095,2]
[358433300,1745143852240,-612.31,0.00021095,2]
[358433301,1745143852249,-500.0,0.00021095,2]
[358433302,1745143852258,-1852.65,0.00021095,2]
[358433303,1745143852267,-500.0,0.00021095,2]
[358433304,1745143852276,-233.32,0.00021095,2]
[358433305,1745143852286,-503.64,0.00021095,2]
[358433306,1745143852295,-859.8,0.00021095,2]
[358433307,1745143852305,-500.0,0.00021095,2]
[358433308,1745143852315,-2612.31,0.00021095,2]
[358433309,1745143852325,-500.0,0.00021369,2]
[358433310,1745143852334,-500.0,0.00021369,2]
[358433311,1745143852344,-768.68,0.00021369,2]
[358433312,1745143852354,-317.36,0.00021369,2]
[358433313,1745143852363,-3450.87,0.00021369,2]
[358433314,1745143852374,-624.1,0.00021369,2]
[358433315,1745143852383,-500.0,0.00021369,2]
[358433316,1745143852393,-500.0,0.00021369,2]
[358433317,1745143852402,-500.0,0.00021369,2]
[358433318,1745143852412,-500.0,0.00021369,2]
[358433319,1745143852422,-1019.63,0.00021369,2]
[358433320,1745143852433,-612.31,0.00021369,2]
[358433321,1745143852442,-496.77,0.00021369,2]
[358433322,1745143852452,-1852.65,0.00021369,2]
[358433323,1745143852460,-500.0,0.00021369,2]
[358433324,1745143852471,-859.8,0.00021369,2]
[358433325,1745143852480,-500.0,0.00021369,2]
[358433326,1745143852489,-2612.31,0.00021369,2]
[358433327,1745143852499,-500.0,0.00021643,2]
[358433328,1745143852508,-373.95,0.00021643,2]
[358433329,1745143852518,-768.68,0.00021643,2]
[358433330,1745143852527,-3450.87,0.00021643,2]
[358433331,1745143852536,-624.1,0.00021643,2]
[358433332,1745143852552,-503.16,0.00021643,2]
[358433333,1745143852562,-500.0,0.00021643,2]
[358433334,1745143852571,-267.51,0.00021643,2]
[358433335,1745143852580,-500.0,0.00021643,2]
[358433336,1745143852591,-1019.63,0.00021643,2]
[358433337,1745143852602,-612.31,0.00021643,2]
[358433338,1745143852612,-1852.65,0.00021643,2]
[358433339,1745143852624,-500.0,0.00021643,2]
[358433340,1745143852633,-859.8,0.00021643,2]
[358433341,1745143852643,-500.0,0.00021643,2]
[358433342,1745143852654,-2612.31,0.00021643,2]
[358433343,1745143852665,-160.0,0.00021917,2]
[358433344,1745143852676,-500.0,0.00021917,2]
[358433345,1745143852687,-768.68,0.00021917,2]
[358433346,1745143852696,-3450.87,0.00021917,2]
[358433347,1745143852706,-624.1,0.00021917,2]
[358433348,1745143852716,-500.0,0.00021917,2]
[358433349,1745143852726,-500.0,0.00021917,2]
[358433350,1745143852736,-1019.63,0.00021917,2]
[358433351,1745143852746,-612.31,0.00021917,2]
[358433352,1745143852757,-1852.65,0.00021917,2]
[358433353,1745143852767,-500.0,0.00021917,2]
[358433354,1745143852778,-859.8,0.00021917,2]
[358433355,1745143852788,-500.0,0.00021917,2]
[358433356,1745143852798,-2612.31,0.00021917,2]
[358433357,1745143852809,-504.292722,0.00021918,2]
[358433358,1745143852819,-2000.0,0.00022,4]
[358433359,1745143852829,-540.0,0.00022,2]
[358433360,1745143852838,-173.042,0.00022168,2]
[358433361,1745143852848,-500.0,0.00022191,2]
[358433362,1745143852857,-768.68,0.00022191,2]
[358433363,1745143852867,-3450.87,0.00022191,2]
[358433364,1745143852876,-624.1,0.00022191,2]
[358433365,1745143852886,-500.0,0.00022191,2]
[358433366,1745143852895,-500.0,0.00022191,2]
[358433367,1745143852905,-1019.63,0.00022191,2]
[358433368,1745143852915,-612.31,0.00022191,2]
[358433369,1745143852925,-1852.65,0.00022191,2]
[358433370,1745143852935,-500.0,0.00022191,2]
[358433371,1745143852945,-859.8,0.00022191,2]
[358433372,1745143852955,-500.0,0.00022191,2]
[358433373,1745143852965,-2612.31,0.00022191,2]
[358433374,1745143852975,-540.0,0.00022192,2]
[358433375,1745143852985,-23084.76478262,0.0002224,2]
[358433376,1745143852994,-500.0,0.00022465,2]
[358433377,1745143853004,-768.68,0.00022465,2]
[358433378,1745143853014,-3450.87,0.00022465,2]
[358433379,1745143853023,-624.1,0.00022465,2]
[358433380,1745143853033,-366.29,0.00022465,2]
[358433381,1745143853042,-500.0,0.00022465,2]
[358433382,1745143853052,-1019.63,0.00022465,2]
[358433383,1745143853062,-612.31,0.00022465,2]
[358433384,1745143853072,-1852.65,0.00022465,2]
[358433385,1745143853082,-552.79,0.00022465,2]
[358433386,1745143853091,-859.8,0.00022465,2]
[358433387,1745143853102,-500.0,0.00022465,2]
[358433388,1745143853112,-2612.31,0.00022465,2]
[358433389,1745143853121,-900.0,0.00022466,2]
[358433390,1745143853132,-587.0,0.00022546,2]
[358433391,1745143853143,-500.0,0.00022577,2]
[358433392,1745143853152,-500.0,0.00022577,2]
[358433393,1745143853162,-354.02,0.000226,31]
[358433394,1745143853172,-354.02,0.000226,31]
[358433395,1745143853182,-354.02,0.000226,31]
[358433396,1745143853192,-354.02,0.000226,31]
[358433397,1745143853201,-354.02,0.000226,31]
[358433398,1745143853211,-354.02,0.000226,31]
[358433399,1745143853220,-354.02,0.000226,31]
[358433400,1745143853230,-354.02,0.000226,31]
[358433401,1745143853239,-354.02,0.000226,31]
[358433402,1745143853249,-354.02,0.000226,31]
[358433403,1745143853258,-354.02,0.000226,31]
[358433404,1745143853268,-354.02,0.000226,31]
[358433405,1745143853277,-354.02,0.000226,31]
[358433406,1745143853286,-354.02,0.000226,31]
[358433407,1745143853296,-354.02,0.000226,31]
[358433408,1745143853306,-354.02,0.000226,31]
[358433409,1745143853315,-151.61362955,0.00022618,2]
[358433410,1745143853324,-500.0,0.00022739,2]
[358433411,1745143853334,-768.68,0.00022739,2]
[358433412,1745143853344,-3450.87,0.00022739,2]
[358433413,1745143853353,-624.1,0.00022739,2]
[358433414,1745143853363,-500.0,0.00022739,2]
[358433415,1745143853373,-1019.63,0.00022739,2]
[358433416,1745143853383,-612.31,0.00022739,2]
[358433417,1745143853393,-1852.65,0.00022739,2]
[358433418,1745143853402,-859.8,0.00022739,2]
[358433419,1745143853411,-500.0,0.00022739,2]
[358433420,1745143853422,-2612.31,0.00022739,2]
[358433421,1745143853431,-587.0,0.00022765,2]
[358433422,1745143853440,-152.0,0.00023,2]
[358433423,1745143853450,-500.0,0.00023013,2]
[358433424,1745143853460,-768.68,0.00023013,2]
[358433425,1745143853469,-3450.87,0.00023013,2]
[358433426,1745143853480,-624.1,0.00023013,2]
[358433427,1745143853490,-500.0,0.00023013,2]
[358433428,1745143853500,-1019.63,0.00023013,2]
[358433429,1745143853509,-612.31,0.00023013,2]
[358433430,1745143853519,-1852.65,0.00023013,2]
[358433431,1745143853529,-859.8,0.00023013,2]
[358433432,1745143853538,-500.0,0.00023013,2]
[358433433,1745143853553,-2612.31,0.00023013,2]
[358433434,1745143853562,-260.69,0.00023287,2]
[358433435,1745143853572,-768.68,0.00023287,2]
[358433436,1745143853582,-3450.87,0.00023287,2]
[358433437,1745143853592,-624.1,0.00023287,2]
[358433438,1745143853602,-151.0,0.00023287,2]
[358433439,1745143853612,-500.0,0.00023287,2]
[358433440,1745143853622,-1019.63,0.00023287,2]
[358433441,1745143853631,-612.31,0.00023287,2]
[358433442,1745143853642,-1852.65,0.00023287,2]
[358433443,1745143853652,-859.8,0.00023287,2]
[358433444,1745143853662,-500.0,0.00023287,2]
[358433445,1745143853832,-2612.31,0.00023287,2]
[358433446,1745143853843,-768.68,0.00023561,2]
[358433447,1745143853853,-3450.87,0.00023561,2]
[358433448,1745143853862,-624.1,0.00023561,2]
[358433449,1745143853872,-500.0,0.00023561,2]
[358433450,1745143853881,-1019.63,0.00023561,2]
[358433451,1745143853891,-612.31,0.00023561,2]
[358433452,1745143853900,-1852.65,0.00023561,2]
[358433453,1745143853911,-859.8,0.00023561,2]
[358433454,1745143853920,-500.0,0.00023561,2]
[358433455,1745143853929,-2612.31,0.00023561,2]
[358433456,1745143853939,-354.02,0.000236,31]
[358433457,1745143853948,-354.02,0.000236,31]
[358433458,1745143853958,-354.02,0.000236,31]
[358433459,1745143853967,-354.02,0.000236,31]
[358433460,1745143853976,-354.02,0.000236,31]
[358433461,1745143853986,-354.02,0.000236,31]
[358433462,1745143853995,-354.02,0.000236,31]
[358433463,1745143854005,-354.02,0.000236,31]
[358433464,1745143854014,-354.02,0.000236,31]
[358433465,1745143854023,-354.02,0.000236,31]
[358433466,1745143854033,-354.02,0.000236,31]
[358433467,1745143854042,-354.02,0.000236,31]
[358433468,1745143854051,-354.02,0.000236,31]
[358433469,1745143854060,-354.02,0.000236,31]
[358433470,1745143854069,-354.02,0.000236,31]
[358433471,1745143854078,-354.02,0.000236,31]
[358433472,1745143854088,-354.02,0.000236,31]
[358433473,1745143854097,-354.02,0.000236,31]
[358433474,1745143854106,-354.02,0.000236,31]
[358433475,1745143854115,-354.02,0.000236,31]
[358433476,1745143854124,-354.02,0.000236,31]
[358433477,1745143854133,-354.02,0.000236,31]
[358433478,1745143854143,-354.02,0.000236,31]
[358433479,1745143854152,-354.02,0.000236,31]
[358433480,1745143854162,-600.0,0.00023808,2]
[358433481,1745143854171,-768.68,0.00023835,2]
[358433482,1745143854182,-3450.87,0.00023835,2]
[358433483,1745143854191,-624.1,0.00023835,2]
[358433484,1745143854200,-500.0,0.00023835,2]
[358433485,1745143854209,-1019.63,0.00023835,2]
[358433486,1745143854218,-612.31,0.00023835,2]
[358433487,1745143854227,-1852.65,0.00023835,2]
[358433488,1745143854236,-859.8,0.00023835,2]
[358433489,1745143854245,-500.0,0.00023835,2]
[358433490,1745143854254,-2612.31,0.00023835,2]
[358433491,1745143854263,-2000.0,0.00024,4]
[358433492,1745143854272,-5000.0,0.00024055,2]
[358433493,1745143854281,-5000.0,0.00024055,2]
[358433494,1745143854291,-600.0,0.00024056,2]
[358433495,1745143854300,-768.68,0.00024109,2]
[358433496,1745143854309,-3450.87,0.00024109,2]
[358433497,1745143854318,-624.1,0.00024109,2]
[358433498,1745143854327,-500.0,0.00024109,2]
[358433499,1745143854336,-1019.63,0.00024109,2]
[358433500,1745143854345,-500.0,0.00024109,2]
[358433501,1745143854355,-500.0,0.00024109,2]
[358433502,1745143854366,-500.0,0.00024109,2]
[358433503,1745143854376,-500.0,0.00024109,2]
[358433504,1745143854385,-500.0,0.00024109,2]
[358433505,1745143854394,-500.0,0.00024109,2]
[358433506,1745143854403,-500.0,0.00024109,2]
[358433507,1745143854412,-500.0,0.00024109,2]
[358433508,1745143854423,-500.0,0.00024109,2]
[358433509,1745143854433,-500.0,0.00024109,2]
[358433510,1745143854444,-500.0,0.00024109,2]
[358433511,1745143854457,-441.56192546,0.00024109,2]
[358433512,1745143854467,-612.31,0.00024109,2]
[358433513,1745143854477,-1852.65,0.00024109,2]
[358433514,1745143854487,-859.8,0.00024109,2]
[358433515,1745143854496,-500.0,0.00024109,2]
[358433516,1745143854505,-2612.31,0.00024109,2]
[358433517,1745143854515,-1200.0,0.0002411,2]
[358433518,1745143854524,-151.0,0.00024164,7]
[358433519,1745143854533,-152.0,0.00024164,2]
[358433520,1745143854543,-237.7214211,0.00024236,2]
[358433521,1745143854556,-768.68,0.00024383,2]
[358433522,1745143854566,-3450.87,0.00024383,2]
[358433523,1745143854575,-624.1,0.00024383,2]
[358433524,1745143854584,-500.0,0.00024383,2]
[358433525,1745143854593,-1019.63,0.00024383,2]
[358433526,1745143854603,-612.31,0.00024383,2]
[358433527,1745143854612,-1852.65,0.00024383,2]
[358433528,1745143854622,-859.8,0.00024383,2]
[358433529,1745143854632,-500.0,0.00024383,2]
[358433530,1745143854642,-2612.31,0.00024383,2]
[358433531,1745143854651,-237.7214212,0.00024433,2]
[358433532,1745143854661,-823.0,0.00024576,2]
[358433533,1745143854670,-354.02,0.000246,31]
[358433534,1745143854680,-354.02,0.000246,31]
[358433535,1745143854689,-354.02,0.000246,31]
[358433536,1745143854698,-354.02,0.000246,31]
[358433537,1745143854707,-354.02,0.000246,31]
[358433538,1745143854716,-354.02,0.000246,31]
[358433539,1745143854727,-354.02,0.000246,31]
[358433540,1745143854736,-354.02,0.000246,31]